bitfinex/quotes_BTCUSD_20240731
["timestamp","ask_amount","ask_price","bid_price","bid_amount"]
[1722431138053,0.09012458,66367.0,66366.0,0.755397]
[1722431138263,0.045,66367.0,66366.0,0.755397]
[1722431140109,0.045,66367.0,66366.0,1.056756]
[1722431140387,0.045,66367.0,66366.0,1.137556]
[1722431140543,0.045,66367.0,66366.0,1.125456]
[1722431140944,0.045,66367.0,66366.0,0.743297]
[1722431141332,0.045,66367.0,66366.0,1.044656]
[1722431143276,0.0005,66369.0,66368.0,0.753375]
[1722431144033,0.0005,66369.0,66368.0,1.054725]
[1722431144685,0.0015,66369.0,66368.0,1.054725]
[1722431145730,0.0025,66369.0,66368.0,1.054725]
[1722431146334,0.0015,66369.0,66368.0,1.054725]
[1722431146542,0.0015,66369.0,66368.0,1.057725]
[1722431147192,0.0015,66369.0,66368.0,1.054725]
[1722431147639,0.0015,66369.0,66368.0,0.753375]
[1722431148251,0.0015,66369.0,66368.0,1.054725]
[1722431148472,0.0015,66369.0,66368.0,1.059725]
[1722431148939,0.0005,66369.0,66368.0,1.059725]
[1722431149364,0.0005,66369.0,66368.0,1.062725]
[1722431149536,0.0005,66369.0,66368.0,1.059725]
[1722431149951,0.0005,66369.0,66368.0,1.064725]
[1722431150955,0.0005,66369.0,66368.0,0.763375]
[1722431151402,0.0005,66369.0,66368.0,1.064725]
[1722431151618,0.0005,66369.0,66368.0,0.763375]
[1722431152556,0.0005,66369.0,66368.0,0.77033041]
[1722431154132,0.0005,66369.0,66368.0,0.01695541]
[1722431154367,0.0005,66369.0,66368.0,0.16763041]
[1722431154619,0.0005,66369.0,66368.0,0.01695541]
[1722431155289,0.1436,66369.0,66368.0,0.01695541]
[1722431155510,0.1436,66369.0,66358.0,0.518393]
[1722431155511,0.21116402,66369.0,66362.0,0.150688]
[1722431155737,0.12766899,66366.0,66362.0,0.150688]
[1722431155955,0.0625,66365.0,66361.0,0.15069]
[1722431156161,0.0625,66365.0,66361.0,0.150689]
[1722431156162,0.0450711,66363.0,66361.0,0.150689]
[1722431156386,0.0450711,66363.0,66359.0,0.30139]
[1722431156612,0.0450711,66363.0,66361.0,0.150689]
[1722431157470,0.0450711,66362.0,66361.0,0.150689]
[1722431157674,0.0450711,66362.0,66361.0,0.45207]
[1722431157876,0.0450711,66363.0,66362.0,0.452065]
[1722431158136,0.0450711,66364.0,66362.0,0.150688]
[1722431158492,0.0450711,66363.0,66362.0,0.150688]
[1722431158688,0.0450711,66363.0,66361.0,0.301381]
[1722431158689,0.0450711,66363.0,66361.0,0.15069]
[1722431158900,0.0450711,66363.0,66361.0,0.150689]
[1722431158901,0.0470711,66363.0,66361.0,0.150689]
[1722431159108,0.002,66363.0,66362.0,0.150688]
[1722431159309,0.0450711,66364.0,66363.0,0.150685]
[1722431159310,0.04508979,66364.0,66363.0,0.150685]
[1722431159724,0.0460968,66364.0,66363.0,0.45903527]
[1722431159927,0.0450968,66364.0,66363.0,0.45903527]
[1722431160544,0.09017959,66367.0,66364.0,0.452052]
[1722431160545,0.0450968,66365.0,66364.0,0.452052]
[1722431160747,0.0450968,66366.0,66365.0,0.150681]
[1722431160969,0.0450968,66366.0,66365.0,0.452044]
[1722431161170,0.0450968,66366.0,66365.0,0.45902109]
[1722431162580,0.001,66366.0,66365.0,0.45902109]
[1722431163483,0.06968377,66366.0,66365.0,0.45902109]
[1722431164027,0.06968377,66366.0,66365.0,0.15765809]
[1722431164225,0.06868377,66366.0,66365.0,0.15765809]
[1722431164450,0.001,66366.0,66365.0,0.15765809]
[1722431164647,0.002,66366.0,66365.0,0.15765809]
[1722431164861,0.001,66366.0,66365.0,0.15765809]
[1722431165067,0.002,66366.0,66365.0,0.15765809]
[1722431165532,0.09224503,66366.0,66365.0,0.00697709]
[1722431165717,0.09224503,66366.0,66365.0,0.15765809]
[1722431165941,0.09230933,66366.0,66365.0,0.15765809]
[1722431166676,0.002,66366.0,66365.0,0.15765809]
[1722431167371,0.11488666,66366.0,66365.0,0.15765809]
[1722431167515,0.11488666,66366.0,66365.0,0.45902109]
[1722431167720,0.11488666,66366.0,66365.0,0.76038409]
[1722431168361,0.11488666,66366.0,66365.0,0.45902109]
[1722431168562,0.001,66366.0,66365.0,0.45902109]
[1722431168936,0.002,66366.0,66365.0,0.90346224]
[1722431169139,0.09238143,66366.0,66365.0,1.19814709]
[1722431169456,0.04618874,66366.0,66365.0,1.32338409]
[1722431169677,0.04618867,66366.0,66365.0,1.32338409]
[1722431169885,0.0687823,66366.0,66365.0,1.19814709]
[1722431170096,0.0677823,66367.0,66366.0,1.054756]
[1722431170299,0.0677823,66367.0,66366.0,1.17999521]
[1722431170506,0.0677823,66368.0,66367.0,1.054739]
[1722431170744,0.0677823,66368.0,66367.0,1.2641466]
[1722431170913,0.0682823,66369.0,66368.0,0.753375]
[1722431171153,0.0682823,66369.0,66368.0,1.0616928]
[1722431171485,0.0005,66369.0,66368.0,1.0616928]
[1722431171885,0.09088143,66369.0,66368.0,1.0616928]
[1722431172117,0.0005,66369.0,66368.0,0.7603428]
[1722431172333,0.0005,66369.0,66368.0,0.7653428]
[1722431172493,0.11350083,66369.0,66368.0,0.7653428]
[1722431172689,0.11352291,66369.0,66368.0,0.7653428]
[1722431173139,0.0005,66369.0,66368.0,0.7653428]
[1722431173402,0.0005,66369.0,66368.0,0.7703428]
[1722431173740,0.0005,66369.0,66368.0,0.7653428]
[1722431174308,0.0005,66369.0,66368.0,0.7683428]
[1722431174704,0.0005,66369.0,66368.0,0.7633428]
[1722431175812,0.0005,66369.0,66368.0,0.4649928]
[1722431176952,0.0005,66369.0,66368.0,0.4619928]
[1722431177351,0.0005,66369.0,66368.0,0.4639928]
[1722431177887,0.0005,66369.0,66368.0,0.4609928]
[1722431178061,0.0005,66369.0,66368.0,0.4629928]
[1722431181930,0.0005,66369.0,66368.0,0.0109678]
[1722431182049,0.0005,66369.0,66368.0,0.1616428]
[1722431183201,0.0005,66369.0,66368.0,0.2481428]
[1722431183402,0.0005,66369.0,66368.0,0.2461428]
[1722431184188,0.0005,66369.0,66368.0,0.5474928]
[1722431184395,0.0015,66369.0,66368.0,0.5454928]
[1722431184811,0.0025,66369.0,66368.0,0.2441428]
[1722431187934,0.0025,66369.0,66368.0,0.0934678]
[1722431188145,0.19885754,66369.0,66368.0,0.0069678]
[1722431188351,0.234972,66369.0,66360.0,0.0865]
[1722431188588,0.13566692,66365.0,66361.0,0.00694854]
[1722431188792,0.13566692,66364.0,66362.0,0.150687]
[1722431188997,0.13566857,66364.0,66363.0,0.150686]
[1722431189209,0.13566857,66364.0,66363.0,0.00694736]
[1722431189869,0.1471,66368.0,66360.0,0.0865]
[1722431190073,0.297775,66368.0,66363.0,0.00694736]
[1722431190283,0.297775,66368.0,66361.0,0.003]
[1722431190486,0.0603,66367.0,66364.0,0.00694677]
[1722431190696,0.0603,66367.0,66360.0,0.237192]
[1722431190903,0.0603,66367.0,66365.0,0.00694618]
[1722431191051,0.001,66364.0,66363.0,0.004]
[1722431191466,1.06411598,66364.0,66363.0,0.004]
[1722431191665,0.442182,66361.0,66353.0,0.0865]
[1722431192016,0.13567259,66355.0,66353.0,0.0015542]
[1722431192220,0.228006,66354.0,66346.0,0.0865]
[1722431192433,0.215809,66353.0,66346.0,0.0865]
[1722431192844,0.517227,66353.0,66346.0,0.0865]
[1722431193014,0.215809,66353.0,66346.0,0.0865]
[1722431193584,0.0651,66353.0,66349.0,0.0865]
[1722431193980,0.0651,66353.0,66352.0,0.087413]
[1722431194219,0.20167374,66353.0,66352.0,0.088413]
[1722431194471,0.0671,66353.0,66352.0,0.089413]
[1722431195018,0.0661,66353.0,66352.0,0.088413]
[1722431195264,0.0661,66353.0,66352.0,0.001913]
[1722431195459,0.0671,66353.0,66352.0,0.002913]
[1722431196064,0.0651,66353.0,66352.0,0.000913]
[1722431196489,0.0691,66353.0,66352.0,0.000913]
[1722431196691,0.0651,66353.0,66352.0,0.000913]
[1722431197094,0.0691,66353.0,66352.0,0.001913]
[1722431199173,0.0691,66353.0,66352.0,0.00893774]
[1722431199413,0.0691,66353.0,66352.0,0.001913]
[1722431199657,0.0691,66353.0,66352.0,0.00893774]
[1722431199900,0.0691,66353.0,66352.0,0.001913]
[1722431200353,0.0701,66353.0,66352.0,0.001913]
[1722431200826,0.0691,66353.0,66352.0,0.001913]
[1722431200940,0.0691,66353.0,66352.0,0.002913]
[1722431200941,0.0701,66353.0,66352.0,0.002913]
[1722431201154,0.0701,66353.0,66352.0,0.00993774]
[1722431202034,0.0701,66353.0,66352.0,0.002913]
[1722431203726,0.0701,66353.0,66352.0,0.00993774]
[1722431205459,0.0701,66353.0,66352.0,0.002913]
[1722431205688,0.0701,66353.0,66352.0,0.00993774]
[1722431205917,0.0701,66353.0,66352.0,0.002913]
[1722431206155,0.83021028,66353.0,66352.0,0.002913]
[1722431206393,1.16162828,66353.0,66352.0,0.002913]
[1722431206628,1.50402189,66353.0,66352.0,0.002913]
[1722431207057,1.08337804,66353.0,66352.0,0.002913]
[1722431207257,1.21868961,66353.0,66352.0,0.002913]
[1722431207478,0.77196004,66353.0,66352.0,0.002913]
[1722431207688,0.31883304,66353.0,66352.0,0.001913]
[1722431207889,0.24273304,66353.0,66352.0,0.001913]
[1722431208103,0.24273304,66353.0,66352.0,0.002913]
[1722431208104,0.24373304,66353.0,66352.0,0.002913]
[1722431208304,0.24373304,66353.0,66352.0,0.01010599]
[1722431208507,0.005,66353.0,66352.0,0.002913]
[1722431208742,0.1167206,66353.0,66352.0,0.00910599]
[1722431208946,0.32834204,66353.0,66352.0,0.00910599]
[1722431209152,0.76706004,66353.0,66352.0,0.001913]
[1722431209357,1.28936515,66353.0,66352.0,0.001913]
[1722431209563,1.29836515,66353.0,66352.0,0.002913]
[1722431209943,1.28936515,66353.0,66352.0,0.001913]
[1722431210166,1.29636515,66353.0,66352.0,0.002913]
[1722431210393,1.07547804,66353.0,66352.0,0.002913]
[1722431210625,1.20274341,66353.0,66352.0,0.000913]
[1722431210853,1.21474341,66353.0,66352.0,0.001913]
[1722431211071,1.21474341,66353.0,66352.0,0.002913]
[1722431211072,1.09347804,66353.0,66352.0,0.002913]
[1722431211325,1.22869887,66353.0,66352.0,0.002913]
[1722431211765,1.11346168,66353.0,66352.0,0.002913]
[1722431212420,1.24866419,66353.0,66352.0,0.002913]
[1722431212787,0.94724619,66353.0,66352.0,0.002913]
[1722431213000,0.79206004,66353.0,66352.0,0.002913]
[1722431213376,1.09347804,66353.0,66352.0,0.002913]
[1722431213570,1.56009855,66353.0,66352.0,0.002913]
[1722431213793,1.42489604,66353.0,66352.0,0.002913]
[1722431214395,1.56007059,66353.0,66352.0,0.002913]
[1722431215135,1.71076491,66353.0,66352.0,0.002913]
[1722431215345,1.71075981,66353.0,66352.0,0.002913]
[1722431215548,1.75233683,66353.0,66352.0,0.002913]
[1722431215950,1.71075981,66353.0,66352.0,0.002913]
[1722431217420,1.57559036,66353.0,66352.0,0.002913]
[1722431218104,1.55559036,66353.0,66352.0,0.002913]
[1722431219890,1.71076923,66353.0,66352.0,0.002913]
[1722431220248,1.71076525,66353.0,66352.0,0.002913]
[1722431220479,1.57559036,66353.0,66352.0,0.002913]
[1722431221050,1.61716738,66353.0,66352.0,0.002913]
[1722431221431,1.57559036,66353.0,66352.0,0.002913]
[1722431221836,1.61716738,66353.0,66352.0,0.002913]
[1722431222451,1.57559036,66353.0,66352.0,0.002913]
[1722431222984,1.55559036,66353.0,66352.0,0.002913]
[1722431223301,1.57559036,66353.0,66352.0,0.002913]
[1722431223505,1.55559036,66353.0,66352.0,0.002913]
[1722431224339,1.57559036,66353.0,66352.0,0.002913]
[1722431225167,1.55559036,66353.0,66352.0,0.002913]
[1722431225431,0.19963304,66353.0,66352.0,0.089413]
[1722431225624,0.09359968,66353.0,66352.0,0.229713]
[1722431225829,0.026,66353.0,66352.0,0.2373182]
[1722431226040,0.07106533,66353.0,66352.0,0.2373182]
[1722431226249,0.09359968,66353.0,66352.0,0.1735182]
[1722431226565,0.17663304,66353.0,66352.0,0.0105182]
[1722431226716,0.39114204,66353.0,66352.0,0.0105182]
[1722431227059,0.39114204,66353.0,66352.0,0.002913]
[1722431227464,0.41414204,66353.0,66352.0,0.002913]
[1722431227854,0.19963304,66353.0,66352.0,0.002913]
[1722431228061,0.11616872,66353.0,66352.0,0.063913]
[1722431228194,0.09362901,66353.0,66352.0,0.15344376]
[1722431228389,0.026,66353.0,66352.0,0.15344376]
[1722431228644,0.026,66353.0,66352.0,0.09244376]
[1722431230556,0.026,66353.0,66352.0,0.01094376]
[1722431230557,0.32734204,66353.0,66352.0,0.01094376]
[1722431230758,0.19963304,66353.0,66352.0,0.002913]
[1722431231108,0.19963304,66353.0,66352.0,0.01092255]
[1722431231109,0.026,66353.0,66352.0,0.01092255]
[1722431231311,0.026,66353.0,66352.0,0.077913]
[1722431231526,0.026,66353.0,66352.0,0.08592255]
[1722431231700,0.1388237,66353.0,66352.0,0.08592255]
[1722431231901,0.026,66353.0,66352.0,0.59845555]
[1722431232330,0.13882495,66353.0,66352.0,0.59845555]
[1722431232537,0.13885778,66353.0,66352.0,0.59845555]
[1722431232949,0.12485778,66353.0,66352.0,0.29603355]
[1722431233153,0.13385778,66353.0,66352.0,0.14632255]
[1722431233310,0.13385778,66353.0,66352.0,0.59745555]
[1722431233311,0.009,66353.0,66352.0,0.59745555]
[1722431233513,0.13536062,66357.0,66354.0,0.150706]
[1722431233705,0.023,66356.0,66355.0,0.00796897]
[1722431233900,0.13536062,66358.0,66357.0,0.1507]
[1722431234129,0.301356,66367.0,66359.0,0.150695]
[1722431234130,0.13536062,66360.0,66359.0,0.150695]
[1722431234328,0.15063304,66363.0,66359.0,0.15864707]
[1722431234531,0.13546742,66361.0,66359.0,0.00795207]
[1722431234731,0.13546742,66361.0,66358.0,0.0769]
[1722431234732,0.150691,66361.0,66358.0,0.0769]
[1722431234903,0.150691,66361.0,66359.0,0.00795207]
[1722431234904,0.15240085,66361.0,66359.0,0.00795207]
[1722431235107,0.15240085,66361.0,66358.0,0.0769]
[1722431235313,0.15063304,66363.0,66359.0,0.00795207]
[1722431235314,0.15240085,66362.0,66359.0,0.00795207]
[1722431235551,0.15063304,66363.0,66359.0,0.00795207]
[1722431235552,0.15240085,66361.0,66359.0,0.00795207]
[1722431235728,0.30303389,66363.0,66359.0,0.00795207]
[1722431235925,0.15240085,66361.0,66359.0,0.00795207]
[1722431236136,0.15063304,66363.0,66359.0,0.00795207]
[1722431236137,0.15240085,66360.0,66359.0,0.00795207]
[1722431237351,0.007,66361.0,66359.0,0.00895207]
[1722431237803,0.30131904,66363.0,66359.0,0.00795207]
[1722431237962,1.08009804,66360.0,66359.0,0.00795207]
[1722431238123,1.09809804,66360.0,66359.0,0.002]
[1722431238321,1.21744256,66360.0,66359.0,0.002]
[1722431238563,1.21744256,66360.0,66359.0,0.001]
[1722431238564,1.21044256,66360.0,66359.0,0.001]
[1722431240193,1.53182856,66360.0,66359.0,0.001]
[1722431240834,1.53182856,66360.0,66359.0,0.002]
[1722431241241,1.57916983,66360.0,66359.0,0.002]
[1722431241445,1.57916983,66360.0,66359.0,0.001]
[1722431241645,1.58616983,66360.0,66359.0,0.002]
[1722431242057,1.90866163,66360.0,66359.0,0.002]
[1722431242664,1.68616983,66360.0,66359.0,0.002]
[1722431242886,1.85335523,66360.0,66359.0,0.001]
[1722431243089,1.41262471,66360.0,66359.0,0.001]
[1722431243289,1.19809804,66360.0,66359.0,0.002]
[1722431243491,1.19009804,66360.0,66359.0,0.001]
[1722431243828,1.19009804,66360.0,66359.0,0.002]
[1722431243829,1.51948404,66360.0,66359.0,0.002]
[1722431244034,1.51948404,66360.0,66359.0,0.001]
[1722431244035,1.66317836,66360.0,66359.0,0.001]
[1722431244293,1.67717836,66360.0,66359.0,0.002]
[1722431244534,1.89969673,66360.0,66359.0,0.002]
[1722431244919,1.88569673,66360.0,66359.0,0.001]
[1722431245322,1.64917836,66360.0,66359.0,0.001]
[1722431245725,1.66917836,66360.0,66359.0,0.001]
[1722431246533,1.67806777,66360.0,66359.0,0.001]
[1722431246887,1.65806777,66360.0,66359.0,0.001]
[1722431247279,1.72540904,66360.0,66359.0,0.001]
[1722431247649,1.73940904,66360.0,66359.0,0.002]
[1722431247876,1.69206777,66360.0,66359.0,0.002]
[1722431248062,1.67806777,66360.0,66359.0,0.001]
[1722431248290,1.67206777,66360.0,66359.0,0.002]
[1722431248860,1.89460287,66360.0,66359.0,0.002]
[1722431249480,1.67206777,66360.0,66359.0,0.002]
[1722431249680,1.91461675,66360.0,66359.0,0.002]
[1722431249882,1.89461675,66360.0,66359.0,0.002]
[1722431250089,1.67206777,66360.0,66359.0,0.002]
[1722431250520,1.69206777,66360.0,66359.0,0.002]
[1722431252121,1.73940904,66360.0,66359.0,0.002]
[1722431252374,1.69206777,66360.0,66359.0,0.002]
[1722431254824,1.91462535,66360.0,66359.0,0.002]
[1722431255598,1.89462535,66360.0,66359.0,0.002]
[1722431255814,0.73960145,66360.0,66359.0,0.002]
[1722431256017,0.43821545,66360.0,66359.0,0.002]
[1722431256471,0.73960145,66360.0,66359.0,0.002]
[1722431257110,0.28752245,66360.0,66359.0,0.002]
[1722431257504,0.28752245,66360.0,66359.0,0.00982862]
[1722431257711,0.44009579,66360.0,66359.0,0.002]
[1722431257906,0.44009579,66360.0,66359.0,0.00982862]
[1722431258146,0.46309579,66360.0,66359.0,0.002]
[1722431258348,0.46309579,66360.0,66359.0,0.00982862]
[1722431258550,0.46309579,66360.0,66359.0,0.002]
[1722431258780,0.028,66360.0,66359.0,0.1409]
[1722431259167,0.028,66360.0,66359.0,0.29939473]
[1722431259369,0.028,66360.0,66359.0,0.14869973]
[1722431263808,0.028,66360.0,66359.0,0.29939473]
[1722431264250,0.028,66360.0,66359.0,0.14869973]
[1722431264631,0.028,66360.0,66359.0,0.14961273]
[1722431264832,0.16354672,66360.0,66359.0,0.14961273]
[1722431265031,0.028,66360.0,66359.0,0.14961273]
[1722431267857,0.20163304,66360.0,66359.0,0.08681273]
[1722431268085,0.35412281,66360.0,66359.0,0.08681273]
[1722431268291,0.35232604,66360.0,66359.0,0.08681273]
[1722431268495,0.35232604,66360.0,66359.0,0.01071273]
[1722431268744,0.75560944,66360.0,66359.0,0.01071273]
[1722431268916,1.05699544,66360.0,66359.0,0.002913]
[1722431269536,1.50718144,66360.0,66359.0,0.002913]
[1722431269774,1.52718144,66360.0,66359.0,0.002913]
[1722431270176,1.82856744,66360.0,66359.0,0.002913]
[1722431270337,2.08746744,66360.0,66359.0,0.002913]
[1722431270701,2.09999832,66360.0,66359.0,0.002913]
[1722431272052,2.09651469,66360.0,66359.0,0.002913]
[1722431272997,2.07651469,66360.0,66359.0,0.002913]
[1722431273231,2.09651469,66360.0,66359.0,0.002913]
[1722431273447,2.31898341,66360.0,66359.0,0.002913]
[1722431273665,2.09651469,66360.0,66359.0,0.002913]
[1722431276501,2.10904577,66360.0,66359.0,0.002913]
[1722431276678,2.1090457,66360.0,66359.0,0.002913]
[1722431279502,2.09651469,66360.0,66359.0,0.002913]
[1722431280078,2.10904565,66360.0,66359.0,0.002913]
[1722431280633,2.09651469,66360.0,66359.0,0.002913]
[1722431283534,2.07651469,66360.0,66359.0,0.002913]
[1722431283741,2.29891929,66360.0,66359.0,0.002913]
[1722431283942,1.59793589,66360.0,66359.0,0.002913]
[1722431284143,1.05114529,66360.0,66359.0,0.002913]
[1722431284342,1.04114529,66360.0,66359.0,0.002913]
[1722431284564,1.04114529,66360.0,66359.0,0.144813]
[1722431285393,0.43837329,66360.0,66359.0,0.144813]
[1722431285552,1.04114529,66360.0,66359.0,0.144813]
[1722431286163,1.11708328,66360.0,66359.0,0.080213]
[1722431286632,1.14008328,66360.0,66359.0,0.080213]
[1722431287070,1.06414529,66360.0,66359.0,0.080213]
[1722431287765,0.76275929,66360.0,66359.0,0.080213]
[1722431288493,0.46137329,66360.0,66359.0,0.080213]
[1722431288623,0.31068029,66360.0,66359.0,0.080213]
[1722431288824,0.21068029,66360.0,66359.0,0.080213]
[1722431289042,0.20163304,66360.0,66359.0,0.15265606]
[1722431290144,0.16351839,66360.0,66359.0,0.15265606]
[1722431290821,0.16351839,66360.0,66359.0,0.30335106]
[1722431291480,0.16351839,66360.0,66359.0,0.15265606]
[1722431292907,0.1634909,66360.0,66359.0,0.15265606]
[1722431294081,0.028,66360.0,66359.0,0.15265606]
[1722431295532,0.028,66360.0,66359.0,0.60474106]
[1722431296436,0.028,66360.0,66359.0,0.15265606]
[1722431296865,0.16348434,66360.0,66359.0,0.15265606]
[1722431296977,0.16348434,66360.0,66359.0,0.30335106]
[1722431296978,0.028,66360.0,66359.0,0.30335106]
[1722431297202,0.13548434,66362.0,66359.0,0.22405106]
[1722431297423,0.011,66360.0,66359.0,0.07435606]
[1722431297668,0.011,66360.0,66359.0,0.07535606]
[1722431297669,0.023,66360.0,66359.0,0.07535606]
[1722431297904,0.023,66360.0,66359.0,0.15345606]
[1722431298169,0.14748434,66360.0,66359.0,0.15245606]
[1722431298416,0.37346454,66360.0,66359.0,0.15345606]
[1722431298658,0.54715754,66360.0,66359.0,0.08885606]
[1722431298886,0.4901784,66360.0,66359.0,0.00975606]
[1722431299086,1.1029504,66360.0,66359.0,0.00975606]
[1722431299336,1.4658364,66360.0,66359.0,0.001913]
[1722431299687,1.53317767,66360.0,66359.0,0.001913]
[1722431300102,1.51317767,66360.0,66359.0,0.001913]
[1722431300310,1.4858364,66360.0,66359.0,0.001913]
[1722431300511,1.4968364,66360.0,66359.0,0.002913]
[1722431300924,1.4738364,66360.0,66359.0,0.000913]
[1722431301134,1.4878364,66360.0,66359.0,0.000913]
[1722431301338,1.4878364,66360.0,66359.0,0.001913]
[1722431301339,1.6018364,66360.0,66359.0,0.001913]
[1722431304043,2.0621224,66360.0,66359.0,0.001913]
[1722431304244,2.10946367,66360.0,66359.0,0.001913]
[1722431305575,2.0621224,66360.0,66359.0,0.001913]
[1722431306020,2.10946367,66360.0,66359.0,0.001913]
[1722431307378,2.03411651,66360.0,66359.0,0.001913]
[1722431307792,1.98677524,66360.0,66359.0,0.001913]
[1722431313445,2.2090948,66360.0,66359.0,0.001913]
[1722431313774,1.98677524,66360.0,66359.0,0.001913]
[1722431316293,2.20915667,66360.0,66359.0,0.001913]
[1722431316753,1.98677524,66360.0,66359.0,0.001913]
[1722431316939,2.25649794,66360.0,66359.0,0.001913]
[1722431317538,2.03411651,66360.0,66359.0,0.001913]
[1722431318496,2.25649794,66360.0,66359.0,0.001913]
[1722431319282,2.03411651,66360.0,66359.0,0.001913]
[1722431319429,2.25649959,66360.0,66359.0,0.001913]
[1722431319607,2.03411651,66360.0,66359.0,0.001913]
[1722431320215,2.0466474,66360.0,66359.0,0.001913]
[1722431320843,1.084963,66353.0,66352.0,0.000913]
[1722431321055,1.25859604,66353.0,66352.0,0.000913]
[1722431321257,1.35859604,66353.0,66352.0,0.000913]
[1722431321470,1.40593731,66353.0,66352.0,0.000913]
[1722431322307,1.43393731,66353.0,66352.0,0.000913]
[1722431322517,1.58463163,66353.0,66352.0,0.000913]
[1722431322884,1.55663163,66353.0,66352.0,0.000913]
[1722431323115,1.57063163,66353.0,66352.0,0.000913]
[1722431323349,1.58463163,66353.0,66352.0,0.000913]
[1722431323553,1.57063163,66353.0,66352.0,0.000913]
[1722431323775,1.55063163,66353.0,66352.0,0.000913]
[1722431324001,1.57063163,66353.0,66352.0,0.000913]
[1722431324913,1.55663163,66353.0,66352.0,0.000913]
[1722431325106,1.57063163,66353.0,66352.0,0.000913]
[1722431325590,1.58463163,66353.0,66352.0,0.000913]
[1722431326493,1.65053163,66353.0,66352.0,0.000913]
[1722431326720,1.60319036,66353.0,66352.0,0.000913]
[1722431327642,1.58319036,66353.0,66352.0,0.000913]
[1722431327877,1.60319036,66353.0,66352.0,0.000913]
[1722431328300,1.58919036,66353.0,66352.0,0.000913]
[1722431328813,1.60319036,66353.0,66352.0,0.000913]
[1722431329230,1.61572176,66353.0,66352.0,0.000913]
[1722431329456,1.68832176,66353.0,66352.0,0.000913]
[1722431329678,1.71119916,66353.0,66352.0,0.000913]
[1722431332579,1.71119915,66353.0,66352.0,0.000913]
[1722431333893,1.69866776,66353.0,66352.0,0.000913]
[1722431334123,1.71119907,66353.0,66352.0,0.000913]
[1722431334578,1.75854034,66353.0,66352.0,0.000913]
[1722431335028,1.71119907,66353.0,66352.0,0.000913]
[1722431338732,1.69119907,66353.0,66352.0,0.000913]
[1722431338952,1.08658675,66353.0,66352.0,0.146813]
[1722431339179,1.06405544,66353.0,66352.0,0.146813]
[1722431339842,0.46121944,66353.0,66352.0,0.146813]
[1722431340098,0.76263744,66353.0,66352.0,0.146813]
[1722431340318,0.46121944,66353.0,66352.0,0.146813]
[1722431341002,0.87004148,66353.0,66352.0,0.146813]
[1722431341248,1.17145948,66353.0,66352.0,0.146813]
[1722431346096,0.56862348,66353.0,66352.0,0.146813]
[1722431346301,0.87004148,66353.0,66352.0,0.146813]
[1722431346505,0.77004148,66353.0,66352.0,0.146813]
[1722431347588,0.46862348,66353.0,66352.0,0.146813]
[1722431348446,0.31791448,66353.0,66352.0,0.146813]
[1722431348650,0.46862348,66353.0,66352.0,0.146813]
[1722431348864,0.36121944,66353.0,66352.0,0.146813]
[1722431349079,0.028,66353.0,66352.0,0.297524]
[1722431349288,0.028,66353.0,66352.0,0.598946]
[1722431349511,0.028,66353.0,66352.0,0.60738917]
[1722431350456,0.028,66353.0,66352.0,0.30596717]
[1722431350660,0.028,66353.0,66352.0,0.15525617]
[1722431350866,0.014,66353.0,66352.0,0.30596717]
[1722431351077,0.028,66353.0,66352.0,0.30596717]
[1722431351279,0.028,66353.0,66352.0,0.30752137]
[1722431351894,0.014,66353.0,66352.0,0.30752137]
[1722431352391,0.028,66353.0,66352.0,0.30752137]
[1722431352804,0.028,66353.0,66352.0,0.15681037]
[1722431353341,0.028,66353.0,66352.0,0.30752137]
[1722431353664,0.028,66353.0,66352.0,0.30596717]
[1722431354062,0.028,66353.0,66352.0,0.15681037]
[1722431354468,0.028,66353.0,66352.0,0.30596717]
[1722431355398,0.028,66353.0,66352.0,0.15681037]
[1722431355601,0.15976628,66358.0,66353.0,0.04598162]
[1722431355602,0.15276031,66356.0,66353.0,0.04598162]
[1722431355861,0.30325067,66356.0,66353.0,0.04598162]
[1722431356074,0.30325067,66356.0,66354.0,0.00842361]
[1722431356925,0.31725067,66356.0,66354.0,0.00842361]
[1722431357548,0.33125067,66356.0,66354.0,0.00842361]
[1722431358373,0.16463304,66356.0,66354.0,0.00842361]
[1722431358576,0.17863304,66356.0,66354.0,0.00942361]
[1722431358783,0.15261763,66355.0,66354.0,0.00942361]
[1722431359211,0.15258753,66355.0,66354.0,0.01042361]
[1722431359420,0.45392457,66355.0,66354.0,0.01042361]
[1722431359629,0.62574604,66355.0,66354.0,0.00942361]
[1722431359842,0.62574604,66355.0,66354.0,0.001]
[1722431360050,0.63574604,66355.0,66354.0,0.002]
[1722431360299,0.63574604,66355.0,66354.0,0.01042361]
[1722431361073,0.63574604,66355.0,66354.0,0.002]
[1722431361074,0.33433704,66355.0,66354.0,0.002]
[1722431361819,0.63574604,66355.0,66354.0,0.002]
[1722431362019,0.63574604,66355.0,66354.0,0.01042361]
[1722431362241,0.63574604,66355.0,66354.0,0.00942361]
[1722431362448,0.95115504,66355.0,66354.0,0.002]
[1722431362670,1.10184936,66355.0,66354.0,0.01042361]
[1722431362904,1.10184936,66355.0,66354.0,0.002]
[1722431369727,0.64974604,66355.0,66354.0,0.1478]
[1722431370104,0.64974604,66355.0,66354.0,0.0841]
[1722431370105,0.95115504,66355.0,66354.0,0.0841]
[1722431371304,0.95115504,66355.0,66354.0,0.002]
[1722431371503,1.01305504,66355.0,66354.0,0.002]
[1722431371675,1.09165504,66355.0,66354.0,0.002]
[1722431371882,1.39306404,66355.0,66354.0,0.002]
[1722431372085,1.54375836,66355.0,66354.0,0.002]
[1722431372709,1.24234936,66355.0,66354.0,0.002]
[1722431372908,1.16374936,66355.0,66354.0,0.002]
[1722431373128,1.46515836,66355.0,66354.0,0.002]
[1722431374750,1.47515836,66355.0,66354.0,0.002]
[1722431378288,1.49515836,66355.0,66354.0,0.002]
[1722431379596,1.17374936,66355.0,66354.0,0.002]
[1722431380846,0.87234036,66355.0,66354.0,0.002]
[1722431381875,0.35832736,66355.0,66354.0,0.002]
[1722431382092,0.19763304,66355.0,66354.0,0.143]
[1722431382533,0.19763304,66355.0,66354.0,0.15147776]
[1722431383419,0.024,66355.0,66354.0,0.23807776]